[Event "EYCC Open-U14 2019"]
[Site "Bratislava"]
[Date "2019.08.06"]
[Round "5.18"]
[White "Popov, Maksim M."]
[Black "Mitusov, Semen"]
[Result "0-1"]
[ECO "A06"]
[WhiteElo "2152"]
[BlackElo "2199"]
[Annotator "NA"]
[PlyCount "158"]
[EventDate "2019.08.02"]
[EventType "swiss"]
[EventCountry "SVK"]
[SourceTitle "playchess.com"]
[Source "ChessBase"]
[SourceQuality "1"]
[TimeControl "40/5400+30:1800+30"]

1. Nf3 {[%emt 0:00:00]} d5 {[%emt 0:00:00]} 2. e3 {[%emt 0:00:00]} Nf6 {[%emt 0:01:35]} 3. b3 {[%emt 0:00:03]} e6 {[%emt 0:01:11]} 4. Bb2 {[%emt 0:00:09]} b6 {[%emt 0:00:44]} 5. d4 {[%emt 0:00:42]} Bb7 {[%emt 0:01:11]} 6. Bd3 {[%emt 0:00:13]} Bd6 {[%emt 0:01:40]} 7. Nbd2 {[%emt 0:00:36]} c5 {[%emt 0:01:53]} 8. O-O {[%emt 0:01:32]} Nc6 {[%emt 0:00:36]} 9. Qe2 {[%emt 0:02:17]} Qc7 {[%emt 0:02:49]} 10. c3 {[%emt 0:01:12]} a6 {[%emt 0:02:55]} 11. e4 {[%emt 0:01:35]} dxe4 {[%emt 0:01:13]} 12. Nxe4 {[%emt 0:00:07]} cxd4 {[%emt 0:03:13]} 13. cxd4 {[%emt 0:01:37]} Nxe4 {[%emt 0:06:57]} 14. Bxe4 {[%emt 0:00:16]} Nb4 {[%emt 0:01:24]} 15. Ne5 {[%emt 0:04:04]} Bxe4 {[%emt 0:11:04]} 16. Qxe4 {[%emt 0:01:00]} Nd5 {[%emt 0:01:22]} 17. Rac1 {[%emt 0:01:01]} Qe7 {[%emt 0:00:36]} 18. Rc6 {[%emt 0:09:25]} O-O {[%emt 0:03:10]} 19. Nc4 {[%emt 0:02:10]} Bc7 {[%emt 0:02:08]} 20. Rc1 {[%emt 0:04:47]} Qg5 {[%emt 0:12:07]} 21. Ne5 {[%emt 0:02:59]} Bd8 {[%emt 0:02:49]} 22. Ba3 {[%emt 0:04:45]} Be7 {[%emt 0:01:23]} 23. f4 {[%emt 0:00:11]} Qh6 {[%emt 0:09:50]} 24. Bxe7 {[%emt 0:01:00]} Nxe7 {[%emt 0:00:01]} 25. Rxb6 {[%emt 0:01:06]} Nd5 {[%emt 0:01:18]} 26. Rb7 {[%emt 0:00:36]} Rac8 {[%emt 0:01:38]} 27. Rxc8 {[%emt 0:01:22]} Rxc8 {[%emt 0:00:01]} 28. Qc2 {[%emt 0:00:11]} Rf8 {[%emt 0:02:10]} 29. g3 {[%emt 0:00:20]} Qh3 {[%emt 0:01:17]} 30. Nd7 {[%emt 0:03:28]} Rd8 {[%emt 0:00:55]} 31. Rb8 {[%emt 0:00:12]} Rxb8 {[%emt 0:00:14]} 32. Nxb8 {[%emt 0:00:07]} h5 {[%emt 0:00:57]} 33. Nd7 {[%emt 0:20:42]} h4 {[%emt 0:01:31]} 34. Qc8+ {[%emt 0:01:46]} Kh7 {[%emt 0:00:01]} 35. Qd8 {[%emt 0:01:10]} f6 {[%emt 0:03:19]} 36. Nf8+ {[%emt 0:02:26]} Kh6 {[%emt 0:00:15]} 37. Qe8 {[%emt 0:00:10]} Qg4 {[%emt 0:08:45]} 38. Qxe6 {[%emt 0:00:32]} Qf3 {[%emt 0:00:46]} 39. Qe8 {[%emt 0:18:03]} Qd3 {[%emt 0:07:30]} 40. Kf2 {[%emt 0:00:00]} Qxd4+ {[%emt 0:00:00]} 41. Kg2 {[%emt 0:09:06]} Qd3 {[%emt 0:04:32]} 42. Qe6 {[%emt 0:03:18]} Ne3+ {[%emt 0:02:30]} 43. Kf2 {[%emt 0:01:37]} Nf5 {[%emt 0:08:22]} 44. Qe8 {[%emt 0:13:12]} hxg3+ {[%emt 0:01:43]} 45. hxg3 {[%emt 0:03:50]} Qxg3+ {[%emt 0:01:19]} 46. Ke2 {[%emt 0:00:05]} Qg2+ {[%emt 0:01:44]} 47. Ke1 {[%emt 0:00:36]} Nd4 {[%emt 0:01:11]} 48. Kd1 {[%emt 0:00:48]} Qc2+ {[%emt 0:02:15]} 49. Ke1 {[%emt 0:00:04]} Qc1+ {[%emt 0:00:39]} 50. Kf2 {[%emt 0:00:04]} Qxf4+ {[%emt 0:00:16]} 51. Ke1 {[%emt 0:00:16]} Qc1+ {[%emt 0:00:51]} 52. Kf2 {[%emt 0:00:05]} Qd2+ {[%emt 0:00:07]} 53. Kf1 {[%emt 0:00:15]} Qd3+ {[%emt 0:01:26]} 54. Kf2 {[%emt 0:00:13]} Qf5+ {[%emt 0:01:52]} 55. Ke3 {[%emt 0:00:27]} Qg4 {[%emt 0:01:48]} 56. Kd3 {[%emt 0:01:39]} Nf5 {[%emt 0:01:18]} 57. Qd7 {[%emt 0:01:36]} Qd1+ {[%emt 0:02:46]} 58. Ke4 {[%emt 0:00:15]} Nd6+ {[%emt 0:01:19]} 59. Ke3 {[%emt 0:00:24]} Qg1+ {[%emt 0:00:38]} 60. Ke2 {[%emt 0:01:04]} Qg2+ {[%emt 0:00:23]} 61. Kd1 {[%emt 0:00:53]} Ne4 {[%emt 0:01:21]} 62. Qd4 {[%emt 0:00:12]} Qf1+ {[%emt 0:01:27]} 63. Kc2 {[%emt 0:00:10]} Qe2+ {[%emt 0:00:10]} 64. Kc1 {[%emt 0:00:38]} g5 {[%emt 0:02:25]} 65. Qd7 {[%emt 0:00:50]} Qe3+ {[%emt 0:00:43]} 66. Kd1 {[%emt 0:00:26]} Kh5 {[%emt 0:00:34]} 67. Qe8+ {[%emt 0:01:12]} Kg4 {[%emt 0:00:15]} 68. Qd7+ {[%emt 0:00:27]} f5 {[%emt 0:00:15]} 69. Ng6 {[%emt 0:00:10]} Qg1+ {[%emt 0:01:12]} 70. Kc2 {[%emt 0:00:31]} Qc5+ {[%emt 0:00:10]} 71. Kb1 {[%emt 0:00:35]} Qd6 {[%emt 0:00:57]} 72. Qg7 {[%emt 0:01:34]} Qf6 {[%emt 0:02:10]} 73. Ne5+ {[%emt 0:00:30]} Kf4 {[%emt 0:00:18]} 74. Ng6+ {[%emt 0:00:12]} Kg3 {[%emt 0:01:00]} 75. Qc7+ {[%emt 0:00:14]} Qd6 76. Qf7 {[%emt 0:00:06]} Qf6 {[%emt 0:00:57]} 77. Qc7+ {[%emt 0:00:31]} f4 {[%emt 0:01:05]} 78. Ne7 {[%emt 0:00:11]} Qc3 {[%emt 0:00:58]} 79. Nf5+ {[%emt 0:00:36]} Kg4 {[%emt 0:00:47]} 0-1

[Event "EYCC Open-U14 2019"]
[Site "Bratislava"]
[Date "2019.08.06"]
[Round "5.19"]
[White "Revaliente Montoya, Ciro"]
[Black "Shoshin, Kirill"]
[Result "1/2-1/2"]
[ECO "C11"]
[WhiteElo "1917"]
[BlackElo "2089"]
[Annotator "NA"]
[PlyCount "64"]
[EventDate "2019.08.02"]
[EventType "swiss"]
[EventCountry "SVK"]
[SourceTitle "playchess.com"]
[Source "ChessBase"]
[SourceQuality "1"]
[TimeControl "40/5400+30:1800+30"]

1. e4 {[%emt 0:00:00]} e6 {[%emt 0:00:00]} 2. d4 {[%emt 0:00:00]} d5 {[%emt 0:00:00]} 3. Nc3 {[%emt 0:00:00]} Nf6 {[%emt 0:00:00]} 4. Bg5 {[%emt 0:00:00]} dxe4 {[%emt 0:00:00]} 5. Nxe4 {[%emt 0:00:04]} Be7 {[%emt 0:00:00]} 6. Bxf6 {[%emt 0:00:19]} gxf6 {[%emt 0:00:00]} 7. Nf3 {[%emt 0:00:16]} f5 {[%emt 0:00:00]} 8. Nc3 {[%emt 0:00:23]} a6 {[%emt 0:00:00]} 9. g3 {[%emt 0:00:48]} b5 {[%emt 0:01:01]} 10. Bg2 {[%emt 0:00:32]} Bb7 {[%emt 0:00:02]} 11. O-O {[%emt 0:00:35]} Qd6 {[%emt 0:00:38]} 12. Re1 {[%emt 0:02:06]} Nd7 {[%emt 0:00:13]} 13. d5 {[%emt 0:10:04]} e5 {[%emt 0:08:35]} 14. Qe2 {[%emt 0:03:53]} b4 {[%emt 0:02:10]} 15. Nxe5 {[%emt 0:04:21]} bxc3 {[%emt 0:02:22]} 16. Nc4 {[%emt 0:02:11]} Qf6 {[%emt 0:00:28]} 17. d6 {[%emt 0:00:48]} cxd6 {[%emt 0:11:48]} 18. Bxb7 {[%emt 0:01:31]} Ra7 {[%emt 0:00:17]} 19. Rad1 {[%emt 0:02:02]} Ne5 {[%emt 0:02:06]} 20. Nxe5 {[%emt 0:01:49]} dxe5 {[%emt 0:00:13]} 21. Qxe5 {[%emt 0:02:29]} Qxe5 {[%emt 0:02:02]} 22. Bc6+ {[%emt 0:00:01]} Kf8 {[%emt 0:00:08]} 23. Rxe5 {[%emt 0:00:07]} cxb2 {[%emt 0:00:29]} 24. Rxf5 {[%emt 0:00:09]} Kg7 {[%emt 0:00:31]} 25. Rb1 {[%emt 0:03:05]} Bf6 {[%emt 0:00:20]} 26. g4 {[%emt 0:05:07]} Rc8 {[%emt 0:02:05]} 27. Be4 {[%emt 0:01:26]} Rc4 {[%emt 0:02:34]} 28. f3 {[%emt 0:04:15]} Rac7 {[%emt 0:03:43]} 29. Rxf6 {[%emt 0:05:01]} Kxf6 {[%emt 0:00:10]} 30. Rxb2 {[%emt 0:00:01]} a5 {[%emt 0:10:51]} 31. Bxh7 {[%emt 0:01:29]} Rb4 {[%emt 0:00:00]} 32. Rb3 {[%emt 0:00:36]} Rxb3 {[%emt 0:00:02]} 1/2-1/2

[Event "EYCC Open-U14 2019"]
[Site "Bratislava"]
[Date "2019.08.06"]
[Round "5.20"]
[White "Andrijashkin, Deniss"]
[Black "Dzida, Kamil"]
[Result "0-1"]
[ECO "C54"]
[WhiteElo "1862"]
[BlackElo "1987"]
[Annotator "NA"]
[PlyCount "58"]
[EventDate "2019.08.02"]
[EventType "swiss"]
[EventCountry "SVK"]
[SourceTitle "playchess.com"]
[Source "ChessBase"]
[SourceQuality "1"]
[TimeControl "40/5400+30:1800+30"]

1. e4 {[%emt 0:00:00]} e5 {[%emt 0:00:00]} 2. Nf3 {[%emt 0:00:00]} Nc6 {[%emt 0:00:00]} 3. Bc4 {[%emt 0:01:02]} Bc5 {[%emt 0:00:00]} 4. c3 {[%emt 0:00:37]} Nf6 {[%emt 0:00:44]} 5. d3 {[%emt 0:00:44]} O-O {[%emt 0:00:48]} 6. Nbd2 {[%emt 0:02:57]} d6 {[%emt 0:00:11]} 7. a4 {[%emt 0:01:25]} a5 {[%emt 0:04:31]} 8. O-O {[%emt 0:02:40]} Ba7 {[%emt 0:00:58]} 9. Re1 {[%emt 0:05:11]} Ng4 {[%emt 0:06:37]} 10. Re2 {[%emt 0:00:54]} Kh8 {[%emt 0:01:58]} 11. h3 {[%emt 0:04:53]} Nh6 {[%emt 0:00:05]} 12. Nf1 {[%emt 0:34:08]} f5 {[%emt 0:11:39]} 13. Bxh6 {[%emt 0:05:42]} gxh6 {[%emt 0:00:05]} 14. exf5 {[%emt 0:00:17]} Bxf5 {[%emt 0:01:53]} 15. Bd5 {[%emt 0:00:32]} Ne7 {[%emt 0:09:41]} 16. Bxb7 {[%emt 0:09:23]} Rb8 {[%emt 0:00:06]} 17. Be4 {[%emt 0:00:08]} Rg8 {[%emt 0:02:25]} 18. Bxf5 {[%emt 0:03:21]} Nxf5 {[%emt 0:00:23]} 19. Kh2 {[%emt 0:01:31]} Qf6 {[%emt 0:02:56]} 20. Ne3 {[%emt 0:09:34]} Bxe3 {[%emt 0:12:37]} 21. fxe3 {[%emt 0:00:06]} Nxe3 {[%emt 0:00:26]} 22. Qg1 {[%emt 0:01:38]} Nd5 {[%emt 0:09:09]} 23. Rd2 {[%emt 0:04:26]} Qf4+ {[%emt 0:05:06]} 24. Kh1 {[%emt 0:00:32]} Ne3 {[%emt 0:00:29]} 25. Qh2 {[%emt 0:03:03]} Rg3 {[%emt 0:04:01]} 26. Ng1 {[%emt 0:01:58]} Rbg8 {[%emt 0:05:41]} 27. Ne2 {[%emt 0:01:10]} Qf2 {[%emt 0:00:05]} 28. Nxg3 {[%emt 0:00:35]} Qxd2 {[%emt 0:00:04]} 29. Nf1 {[%emt 0:00:43]} Qxb2 {[%emt 0:01:06]} 0-1

[Event "EYCC Open-U14 2019"]
[Site "Bratislava"]
[Date "2019.08.06"]
[Round "5.21"]
[White "Petreski, Leonid"]
[Black "Oglaza, Oskar"]
[Result "0-1"]
[ECO "B40"]
[WhiteElo "1644"]
[BlackElo "2345"]
[Annotator "NA"]
[PlyCount "72"]
[EventDate "2019.08.02"]
[EventType "swiss"]
[EventCountry "SVK"]
[SourceTitle "playchess.com"]
[Source "ChessBase"]
[SourceQuality "1"]
[TimeControl "40/5400+30:1800+30"]

1. e4 {[%emt 0:00:00]} c5 {[%emt 0:00:00]} 2. Nf3 {[%emt 0:00:00]} e6 {[%emt 0:00:00]} 3. d4 {[%emt 0:00:03]} cxd4 {[%emt 0:00:00]} 4. Nxd4 {[%emt 0:00:05]} Nf6 {[%emt 0:00:00]} 5. Bd3 {[%emt 0:00:18]} Nc6 {[%emt 0:00:00]} 6. Nb3 {[%emt 0:00:14]} Be7 {[%emt 0:01:27]} 7. O-O {[%emt 0:01:01]} O-O {[%emt 0:01:29]} 8. f4 {[%emt 0:02:25]} e5 {[%emt 0:06:38]} 9. Nc3 {[%emt 0:05:44]} exf4 {[%emt 0:02:16]} 10. Bxf4 {[%emt 0:01:19]} d6 {[%emt 0:00:26]} 11. Be2 {[%emt 0:08:36]} Be6 {[%emt 0:01:21]} 12. Bf3 {[%emt 0:00:24]} Ne5 {[%emt 0:11:01]} 13. Qd4 {[%emt 0:07:13]} Nfd7 {[%emt 0:08:47]} 14. Rad1 {[%emt 0:06:57]} Bg5 {[%emt 0:13:56]} 15. Bxg5 {[%emt 0:12:43]} Qxg5 {[%emt 0:00:05]} 16. Nd2 {[%emt 0:02:49]} Nf6 {[%emt 0:01:15]} 17. Nd5 {[%emt 0:02:47]} Bxd5 {[%emt 0:08:59]} 18. exd5 {[%emt 0:00:20]} Rfe8 {[%emt 0:00:01]} 19. c4 {[%emt 0:03:34]} b6 {[%emt 0:00:09]} 20. b4 {[%emt 0:02:33]} Rac8 {[%emt 0:01:33]} 21. Rc1 {[%emt 0:00:10]} Ng6 {[%emt 0:08:04]} 22. Rfe1 {[%emt 0:12:57]} Rxe1+ {[%emt 0:05:13]} 23. Rxe1 {[%emt 0:00:34]} Ne5 {[%emt 0:00:02]} 24. Kh1 {[%emt 0:05:14]} h5 {[%emt 0:00:27]} 25. Be2 {[%emt 0:08:15]} Nfg4 {[%emt 0:08:31]} 26. Bxg4 {[%emt 0:03:33]} Qxg4 {[%emt 0:00:58]} 27. Qxg4 {[%emt 0:05:32]} hxg4 {[%emt 0:00:04]} 28. a4 {[%emt 0:00:29]} a6 {[%emt 0:06:52]} 29. c5 {[%emt 0:05:18]} bxc5 {[%emt 0:01:00]} 30. b5 {[%emt 0:00:12]} axb5 {[%emt 0:00:21]} 31. axb5 {[%emt 0:00:19]} Rb8 {[%emt 0:05:41]} 32. Rb1 {[%emt 0:02:07]} f5 {[%emt 0:01:01]} 33. Nf1 {[%emt 0:01:34]} Kf7 {[%emt 0:01:39]} 34. Kg1 {[%emt 0:00:39]} g6 {[%emt 0:01:20]} 35. Kf2 {[%emt 0:00:26]} Nd3+ {[%emt 0:00:56]} 36. Ke3 {[%emt 0:00:39]} Nb4 {[%emt 0:00:04] Kd4} 0-1

[Event "EYCC Open-U14 2019"]
[Site "Bratislava"]
[Date "2019.08.06"]
[Round "5.22"]
[White "Musyuk, Lior"]
[Black "Kristoferitsch, Daniel"]
[Result "1/2-1/2"]
[ECO "C11"]
[WhiteElo "2236"]
[BlackElo "2108"]
[Annotator "NA"]
[PlyCount "75"]
[EventDate "2019.08.02"]
[EventType "swiss"]
[EventCountry "SVK"]
[SourceTitle "playchess.com"]
[Source "ChessBase"]
[SourceQuality "1"]
[TimeControl "40/5400+30:1800+30"]

1. e4 {[%emt 0:00:00]} e6 {[%emt 0:00:00]} 2. d4 {[%emt 0:00:00]} d5 {[%emt 0:00:00]} 3. Nc3 {[%emt 0:00:06]} Nf6 {[%emt 0:00:00]} 4. e5 {[%emt 0:00:42]} Nfd7 {[%emt 0:00:04]} 5. f4 {[%emt 0:00:08]} c5 {[%emt 0:00:08]} 6. Nf3 {[%emt 0:00:45]} Nc6 {[%emt 0:00:11]} 7. Be3 {[%emt 0:00:11]} Be7 {[%emt 0:00:28]} 8. dxc5 {[%emt 0:00:55]} O-O {[%emt 0:14:19]} 9. Qd2 {[%emt 0:02:07]} Qa5 {[%emt 0:00:20]} 10. O-O-O {[%emt 0:04:47]} b6 {[%emt 0:05:30]} 11. Bb5 {[%emt 0:18:00]} Nb4 {[%emt 0:00:42]} 12. a3 {[%emt 0:06:20]} bxc5 {[%emt 0:00:57]} 13. Bxd7 {[%emt 0:03:00]} Bxd7 {[%emt 0:00:10]} 14. axb4 {[%emt 0:00:53]} cxb4 {[%emt 0:00:07]} 15. Nb1 {[%emt 0:01:15]} Rfc8 {[%emt 0:00:11]} 16. Nd4 {[%emt 0:03:40]} Qa2 {[%emt 0:01:34]} 17. Qd3 {[%emt 0:05:00]} a5 {[%emt 0:00:16]} 18. Kd2 {[%emt 0:06:40]} Qxb2 {[%emt 0:05:44]} 19. Nb3 {[%emt 0:05:46]} a4 {[%emt 0:17:08]} 20. Bd4 {[%emt 0:01:33]} Qa2 {[%emt 0:00:12]} 21. Nc1 {[%emt 0:02:28]} Qxb1 {[%emt 0:05:38]} 22. Nb3 {[%emt 0:01:04]} Qa2 {[%emt 0:00:21]} 23. Ra1 {[%emt 0:00:59]} axb3 {[%emt 0:00:12]} 24. Rxa2 {[%emt 0:00:54]} bxa2 {[%emt 0:00:09]} 25. Bb2 {[%emt 0:07:55]} Rc4 {[%emt 0:06:59]} 26. Ra1 {[%emt 0:01:28]} Rxf4 {[%emt 0:09:49]} 27. Qb3 {[%emt 0:01:51]} Rf2+ {[%emt 0:00:34]} 28. Ke1 {[%emt 0:01:56]} Rxg2 {[%emt 0:07:03]} 29. Rxa2 {[%emt 0:00:30]} Rxa2 {[%emt 0:00:06]} 30. Qxa2 {[%emt 0:00:07]} Be8 {[%emt 0:02:08]} 31. Bd4 {[%emt 0:02:03]} Kf8 {[%emt 0:06:28]} 32. Kd1 {[%emt 0:03:19]} g6 {[%emt 0:14:10]} 33. Qa7 {[%emt 0:04:52]} Rxh2 {[%emt 0:00:34]} 34. Bc5 {[%emt 0:00:28]} Bxc5 {[%emt 0:00:33]} 35. Qxc5+ {[%emt 0:00:03]} Kg7 {[%emt 0:00:42]} 36. Qe7 {[%emt 0:00:13]} Bb5 {[%emt 0:00:54]} 37. Qf6+ {[%emt 0:00:20]} Kg8 {[%emt 0:00:08]} 38. Qd8+ {[%emt 0:00:09]} 1/2-1/2

[Event "EYCC Open-U14 2019"]
[Site "Bratislava"]
[Date "2019.08.06"]
[Round "5.23"]
[White "Tadic, Stefan"]
[Black "Brnusak, Tomas"]
[Result "1-0"]
[ECO "B47"]
[WhiteElo "2262"]
[BlackElo "2032"]
[Annotator "NA"]
[PlyCount "71"]
[EventDate "2019.08.02"]
[EventType "swiss"]
[EventCountry "SVK"]
[SourceTitle "playchess.com"]
[Source "ChessBase"]
[SourceQuality "1"]
[TimeControl "40/5400+30:1800+30"]

1. e4 {[%emt 0:00:00]} c5 {[%emt 0:00:00]} 2. Nf3 {[%emt 0:00:00]} e6 {[%emt 0:00:36]} 3. d4 {[%emt 0:00:30]} cxd4 {[%emt 0:00:54]} 4. Nxd4 {[%emt 0:00:04]} Nc6 {[%emt 0:00:45]} 5. Nc3 {[%emt 0:00:08]} Qc7 {[%emt 0:01:02]} 6. Be2 {[%emt 0:00:12]} a6 {[%emt 0:00:31]} 7. O-O {[%emt 0:00:10]} Nf6 {[%emt 0:00:47]} 8. Be3 {[%emt 0:00:20]} Bb4 {[%emt 0:00:46]} 9. Nxc6 {[%emt 0:00:05]} bxc6 {[%emt 0:00:22]} 10. Qd4 {[%emt 0:00:04]} c5 {[%emt 0:02:49]} 11. Qc4 {[%emt 0:00:04]} Bb7 {[%emt 0:01:02]} 12. a3 {[%emt 0:00:46]} Bxc3 {[%emt 0:03:23]} 13. Qxc3 {[%emt 0:00:06]} Rc8 {[%emt 0:00:41]} 14. f3 {[%emt 0:15:25]} d5 {[%emt 0:02:08]} 15. exd5 {[%emt 0:07:10]} exd5 {[%emt 0:01:56]} 16. Bg5 {[%emt 0:00:40]} Nd7 {[%emt 0:06:30]} 17. Qxg7 {[%emt 0:00:46]} Qe5 {[%emt 0:09:13]} 18. Qxe5+ {[%emt 0:00:30]} Nxe5 {[%emt 0:00:07]} 19. Bf6 {[%emt 0:00:03]} Ng6 {[%emt 0:00:33]} 20. Bxh8 {[%emt 0:00:12]} Nxh8 {[%emt 0:00:07]} 21. f4 {[%emt 0:06:01]} Kf8 {[%emt 0:04:12]} 22. Bf3 {[%emt 0:01:39]} Ng6 {[%emt 0:00:48]} 23. g3 {[%emt 0:00:08]} c4 {[%emt 0:01:55]} 24. Rad1 {[%emt 0:02:54]} Ne7 {[%emt 0:00:45]} 25. g4 {[%emt 0:05:12]} Rc5 {[%emt 0:01:08]} 26. c3 {[%emt 0:01:40]} Ng6 {[%emt 0:01:50]} 27. Rd4 {[%emt 0:03:41]} Ke7 {[%emt 0:01:09]} 28. Rfd1 {[%emt 0:02:54]} Kd6 {[%emt 0:01:01]} 29. Kf2 {[%emt 0:01:01]} Nf8 {[%emt 0:01:13]} 30. Kg3 {[%emt 0:01:34]} Ne6 {[%emt 0:00:43]} 31. R4d2 {[%emt 0:00:12]} Rb5 {[%emt 0:00:24]} 32. h4 {[%emt 0:09:18]} d4 {[%emt 0:03:11]} 33. Bxb7 {[%emt 0:00:50]} Rxb7 {[%emt 0:00:08]} 34. f5 {[%emt 0:00:28]} Nc5 {[%emt 0:04:26]} 35. Rxd4+ {[%emt 0:00:05]} Ke5 {[%emt 0:00:06]} 36. Rd5+ {[%emt 0:00:05] Kxd5} 1-0

[Event "EYCC Open-U14 2019"]
[Site "Bratislava"]
[Date "2019.08.06"]
[Round "5.24"]
[White "Gnojek, Petr"]
[Black "Grzesik, Gracjan"]
[Result "1-0"]
[ECO "D57"]
[WhiteElo "2246"]
[BlackElo "2004"]
[Annotator "NA"]
[PlyCount "125"]
[EventDate "2019.08.02"]
[EventType "swiss"]
[EventCountry "SVK"]
[SourceTitle "playchess.com"]
[Source "ChessBase"]
[SourceQuality "1"]
[TimeControl "40/5400+30:1800+30"]

1. d4 {[%emt 0:00:00]} Nf6 {[%emt 0:00:00]} 2. c4 {[%emt 0:00:00]} e6 {[%emt 0:00:00]} 3. Nf3 {[%emt 0:00:00]} d5 {[%emt 0:00:00]} 4. Nc3 {[%emt 0:00:00]} Be7 {[%emt 0:00:29]} 5. Bg5 {[%emt 0:00:00]} h6 {[%emt 0:00:38]} 6. Bh4 {[%emt 0:00:27]} O-O {[%emt 0:01:13]} 7. e3 {[%emt 0:00:37]} Ne4 {[%emt 0:03:08]} 8. Bxe7 {[%emt 0:00:32]} Qxe7 {[%emt 0:00:17]} 9. cxd5 {[%emt 0:01:30]} Nxc3 {[%emt 0:03:31]} 10. bxc3 {[%emt 0:01:24]} exd5 {[%emt 0:00:50]} 11. Qc2 c5 {[%emt 0:10:13]} 12. Bd3 {[%emt 0:04:41]} c4 {[%emt 0:13:05]} 13. Bf5 {[%emt 0:01:20]} Nc6 {[%emt 0:01:23]} 14. O-O {[%emt 0:01:40]} b5 {[%emt 0:08:29]} 15. Rfe1 {[%emt 0:01:18]} Re8 {[%emt 0:04:16]} 16. Nd2 {[%emt 0:07:02]} Qa3 {[%emt 0:09:54]} 17. Bxc8 {[%emt 0:02:57]} Raxc8 {[%emt 0:11:24]} 18. e4 {[%emt 0:00:39]} dxe4 {[%emt 0:22:29]} 19. Nxe4 {[%emt 0:00:58]} b4 {[%emt 0:03:26]} 20. d5 {[%emt 0:01:34]} Ne5 {[%emt 0:00:51]} 21. cxb4 {[%emt 0:02:57]} Nd3 {[%emt 0:01:17]} 22. Re3 {[%emt 0:00:58]} Nxb4 {[%emt 0:03:02]} 23. Qe2 {[%emt 0:08:32]} Qa4 {[%emt 0:01:01]} 24. Nc3 {[%emt 0:04:10]} Qd7 {[%emt 0:00:28]} 25. Rxe8+ {[%emt 0:01:39]} Qxe8 {[%emt 0:00:12]} 26. Re1 {[%emt 0:00:31]} Qxe2 {[%emt 0:00:48]} 27. Rxe2 {[%emt 0:00:04]} Rd8 {[%emt 0:00:29]} 28. g3 {[%emt 0:03:44]} Rd7 {[%emt 0:00:29]} 29. Rd2 {[%emt 0:01:09]} f5 30. Rd4 {[%emt 0:00:43]} Kh7 {[%emt 0:01:00]} 31. Kf1 {[%emt 0:02:24]} Kg6 {[%emt 0:00:21]} 32. a3 {[%emt 0:00:30]} Nc2 {[%emt 0:00:39]} 33. Rd2 {[%emt 0:00:07]} Na1 {[%emt 0:00:32]} 34. Rd4 {[%emt 0:01:30]} Nb3 {[%emt 0:00:14]} 35. Rd1 {[%emt 0:00:37]} Kf6 {[%emt 0:00:35]} 36. Re1 {[%emt 0:04:42]} Re7 {[%emt 0:00:37]} 37. Rxe7 {[%emt 0:00:38]} Kxe7 {[%emt 0:00:01]} 38. Ke2 {[%emt 0:00:12]} a6 {[%emt 0:00:52]} 39. Ke3 {[%emt 0:01:01]} g5 {[%emt 0:00:43]} 40. h3 {[%emt 0:00:00]} Kd6 {[%emt 0:00:00]} 41. f4 {[%emt 0:05:20]} Ke7 {[%emt 0:13:49]} 42. g4 {[%emt 0:02:09]} Kf6 {[%emt 0:05:10]} 43. d6 {[%emt 0:07:31]} gxf4+ {[%emt 0:06:22]} 44. Kxf4 {[%emt 0:00:05]} fxg4 {[%emt 0:01:38]} 45. Kxg4 {[%emt 0:01:43]} Nd4 {[%emt 0:02:08]} 46. Kh5 {[%emt 0:01:34]} Nb5 {[%emt 0:02:06]} 47. Nd5+ {[%emt 0:04:44]} Ke6 {[%emt 0:00:29]} 48. d7 {[%emt 0:00:04]} Kxd7 {[%emt 0:00:31]} 49. Nb6+ {[%emt 0:00:05]} Ke6 {[%emt 0:02:23]} 50. Nxc4 {[%emt 0:00:04]} Kf7 {[%emt 0:00:41]} 51. Kxh6 {[%emt 0:00:12]} Kg8 {[%emt 0:00:42]} 52. Kg6 {[%emt 0:00:19]} Kh8 {[%emt 0:00:20]} 53. a4 {[%emt 0:01:44]} Nc3 {[%emt 0:00:16]} 54. a5 {[%emt 0:00:04]} Ne4 {[%emt 0:00:47]} 55. Ne5 {[%emt 0:01:55]} Nc5 {[%emt 0:00:31]} 56. h4 {[%emt 0:00:35]} Ne6 {[%emt 0:00:35]} 57. Nd7 {[%emt 0:01:03]} Kg8 {[%emt 0:00:26]} 58. h5 {[%emt 0:00:51]} Nd4 {[%emt 0:00:27]} 59. h6 {[%emt 0:00:43]} Nc6 {[%emt 0:00:26]} 60. h7+ {[%emt 0:01:38]} Kh8 {[%emt 0:00:02]} 61. Nf8 {[%emt 0:00:49]} Nxa5 {[%emt 0:01:08]} 62. Kh6 {[%emt 0:00:07]} Nc6 {[%emt 0:00:31]} 63. Ng6# {[%emt 0:00:35]} 1-0